Cogmind - Beta 16.1 @@@ ROGUE MODE // 2026.04.09 @ 18:18:30 Player: star Result: Smashed by cave-in Performance ------------- Evolutions (0) 0 Regions Visited (2) 400 Robots Destroyed (28) 140 Value Destroyed (756) 756 Prototype IDs (0) 0 Alien Tech Used (0) 0 Bonus (0) 0 TOTAL SCORE: 1296 Bonus ------- None Cogmind --------- Core Integrity 0/250 Matter 11/300 Energy 160/160 System Corruption 0% Temperature Cool (0) Movement Walking (120) Location -10/Subcaves Parts ------- > --- POWER (1) -------- Light Nuclear Core > --- PROPULSION (2) --- Improved Aluminum Leg Improved Aluminum Leg > --- UTILITY (2) ------ Medium Storage Unit > --- WEAPON (2) ------- Battle Rifle Subdweller Machine Gun > --- INVENTORY (10) --- Subdweller Power Source Humpback Small Matter Pod (0) Terrain Scan Processor Light Assault Rifle Light Assault Rifle Subdweller Machine Gun Rocket Launcher Subdweller Shrapnel Launcher Peak State ------------ > --- POWER ------------ Light Nuclear Core > --- PROPULSION ------- Improved Aluminum Leg Improved Aluminum Leg > --- UTILITY ---------- Medium Storage Unit > --- WEAPON ----------- Battle Rifle Subdweller Machine Gun > --- INVENTORY -------- Light Ion Engine Humpback Small Matter Pod Terrain Scan Processor Light Assault Rifle Light Assault Rifle Subdweller Machine Gun Rocket Launcher Subdweller Shrapnel Launcher [Rating: 13] Favorites ----------- Power Light Ion Engine Engine Light Ion Engine Power Core Light Nuclear Core Propulsion Improved Aluminum Leg Treads Light Treads Leg Improved Aluminum Leg Wheel Wheel Utility Medium Storage Unit Storage Medium Storage Unit Protection Light Armor Plating Weapon Light Assault Rifle Ballistic Gun Light Assault Rifle Launcher Rocket Launcher Build | -11 -10 -10 ------- Run | Yrd Mat Sub Slots Evolved . | . . . Power . | . . . Propulsion . | . . . Utility . | . . . Weapon . | . . . Parts Attached 23 | 7 7 9 Power 3 | 1 1 1 Engine 2 | 1 1 . Core 1 | . . 1 Reactor . | . . . Propulsion 7 | 3 2 2 Treads 1 | 1 . . Leg 4 | . 2 2 Wheel 2 | 2 . . Hover . | . . . Flight . | . . . Utility 3 | 1 1 1 Device . | . . . Storage 2 | 1 1 . Processor . | . . . Hackware . | . . . Protection 1 | . . 1 Artifact . | . . . Weapon 10 | 2 3 5 Energy Gun . | . . . Energy Cannon . | . . . Ballistic Gun 6 | 2 1 3 Ballistic Cannon . | . . . Launcher 4 | . 2 2 Special Weapon . | . . . Impact Weapon . | . . . Slashing Weapon . | . . . Piercing Weapon . | . . . Special Melee Weapon . | . . . Unidentified Prototypes . | . . . Parts Lost 5 | . 2 3 Power 1 | . 1 . Propulsion 2 | . . 2 Utility 1 | . . 1 Weapon 1 | . 1 . Highest Loss Streak 1 | . 1 1 To Critical Strikes . | . . . Average Backups 7 | 2 7 8 Power . | . . 1 Propulsion 1 | 1 1 . Utility 2 | . 1 2 Weapon 3 | . 3 4 Tool/Special . | . . . Unused Backups 7 | . 2 5 Power 1 | . . 1 Propulsion 1 | . 1 . Utility 3 | . . 3 Weapon 2 | . 1 1 Tool/Special . | . . . Average Slot Usage (%) 87 | . 85 90 Engine 13 | . 14 12 Leg 26 | . 24 27 Wheel 1 | . 3 . Storage 14 | . 14 14 Protection 2 | . . 5 Ballistic Gun 25 | . 23 26 Launcher 2 | . 4 1 Peak Build Rating 13 | 6 11 13 Average Rating 9 | 4 8 10 On Entrance 5 | . 6 9 Avg Prop Armor Cover (%) 27 | 27 . . Naked Turns . | . . . Heaviest Build 27 | 10 23 27 Greatest Support 26 | 26 26 26 Greatest Overweight (x) 1 | . . 1 Average Overweight (x) . | . . . Largest Inventory Capacity 10 | 8 10 10 Average Capacity 9 | 7 8 10 Most Carried 10 | 4 9 10 Average Carried 8 | 2 7 8 Final Capacity 10 | 8 10 10 Final Carried 10 | 4 9 10 Class Distribution -------------------- 100% | Mutant Dominant Class ---------------- Mutant | -10/Materials Mutant | -10/Subcaves Resources | -11 -10 -10 ----------- Run | Yrd Mat Sub Matter Collected 844 | 242 201 401 Remotely . | . . . Salvage Created 506 | . 179 327 Parts 41 | . 24 17 Haulers Intercepted . | . . . Recyclers Shooed . | . . . Parts Field Recycled . | . . . Retrieved Matter . | . . . Parts Self-Destructed 7 | . . 7 Prevented . | . . . Parts Restored . | . . . Kills | -11 -10 -10 ------- Run | Yrd Mat Sub Combat Hostiles Destroyed 24 | . 12 12 Guns 8 | . 2 6 AOE 16 | . 10 6 Classes Destroyed 7 | . 5 2 Worker 2 | . 2 . Builder 1 | . 1 . Tunneler 1 | . 1 . Swarmer 8 | . 6 2 Grunt 6 | . 6 . Sentry 1 | . . 1 Subdweller 9 | . . 9 Best Kill Streak 6 | . 6 4 Combat Bots Only 5 | . 5 4 Max Kills in Single Turn 4 | . 4 2 Gunslinging . | . . . Exploded 2 | . 2 2 Melee . | . . . Uniques/NPCs Destroyed . | . . . Combat | -11 -10 -10 -------- Run | Yrd Mat Sub Hostile Shots Fired 94 | . 36 58 Missed 29 | . 8 21 Hits 65 | . 28 37 Projectile 65 | . 28 37 Critical Strikes 1 | . . 1 Damage Taken 1165 | . 345 820 Core 253 | . 74 179 Absorbed by Shields . | . . . Core Remaining (%) 100 | 100 . . Volleys Fired 92 | . 33 59 Largest 2 | . 2 2 Hottest 73 | . 40 73 Shots Fired 157 | . 53 104 Gun 126 | . 40 86 Cannon . | . . . Launcher 31 | . 13 18 Special . | . . . Kinetic 129 | . 40 89 Thermal . | . . . Explosive 28 | . 13 15 Electromagnetic . | . . . Robot Hit Streak 10 | . 6 10 Robot Miss Streak 4 | . 3 4 Penetration Max . | . . . Secondary Targets 1 | . . 1 Max Gunslinging Chain 1 | . . 1 Shots Hit Robots 71 | . 27 44 Core Hits 55 | . 31 24 Critical Kills . | . . . Critical Parts Destroyed 1 | . . 1 Critical Strikes 1 | . . 1 Destroy 1 | . . 1 Melee Attacks . | . . . Impact . | . . . Slashing . | . . . Piercing . | . . . Sneak Attacks . | . . . Combat Hostiles . | . . . Follow-up Attacks . | . . . Damage Inflicted 2519 | . 1026 1493 Guns 687 | . 202 485 Cannons . | . . . Explosions 1825 | . 817 1008 Melee . | . . . Ramming 7 | . 7 . Kinetic 966 | . 202 764 Thermal . | . . . Explosive 1546 | . 817 729 Electromagnetic . | . . . Impact . | . . . Slashing . | . . . Piercing . | . . . Highest Corruption . | . . . Average Corruption . | . . . Corruption Purged . | . . . Corruption Blocked . | . . . Overload Shots . | . . . Overflow Damage 107 | . 4 103 Projectiles . | . . . Explosions 107 | . 4 103 Melee . | . . . Knockbacks . | . . . Impact . | . . . Kinetic . | . . . Secondary . | . . . Self-Inflicted Damage 164 | . 30 134 Shots 5 | . 1 4 Rammed . | . . . Targets Rammed 2 | . 2 . Kicked 2 | . 2 . Crushed . | . . . Highest Temperature 18 | . 18 7 Average Temperature 9 | . 9 7 Received Heat Transfer 246 | . 138 108 Siege Activations . | . . . Martial Activations . | . . . Shielding Activations . | . . . Robots Disrupted . | . . . Combat Hostiles . | . . . Robots Corrupted . | . . . Combat Hostiles . | . . . Parts Fried . | . . . Impact Corruptions . | . . . Robots Melted . | . . . Combat Hostiles . | . . . Parts Melted . | . . . Heat Transferred . | . . . Parts Sabotaged . | . . . Parts Stolen . | . . . Parts Stripped . | . . . Power Chain Reactions . | . . . Alert | -11 -10 -10 ------- Run | Yrd Mat Sub Maximum Alert Level 1 | . 1 . Low Security (%) 52 | 100 48 . Level 1 47 | . 51 . Level 2 . | . . . Level 3 . | . . . Level 4 . | . . . Level 5 . | . . . High Security . | . . . Max Security . | . . . Peak Influence 326 | . 326 . Initial . | . . . Average 146 | . 160 . Influence Increases 536 | . 466 70 Destroy 0b10 Robot/C 300 | . 240 60 Destroy 0b10 Robot/NC 20 | . 20 . Destroy Leader 60 | . 50 10 Disable Machine 60 | . 60 . Destroy Structure 66 | . 66 . Lose Combat Pursuer 30 | . 30 . Influence Decreases 536 | . 246 290 Entered New Map 106 | . . 106 Time Decay 398 | . 226 172 Lost Part 32 | . 20 12 Squads Dispatched 3 | . 3 . Investigation . | . . . Extermination . | . . . Reinforcement 3 | . 3 . Assault . | . . . Garrison . | . . . Intercept . | . . . Searches Triggered . | . . . Construction Impeded . | . . . Haulers Reinforced . | . . . Active Scanning Responses . | . . . Cargo Convoy Interrupts . | . . . Stealth | -11 -10 -10 --------- Run | Yrd Mat Sub Distress Signals 3 | . 3 . Communications Jammed . | . . . Distress Signals . | . . . Times Spotted 33 | . 21 12 Peak Tracking Total 6 | . 6 3 Tactical Retreats 1 | . 1 . Traps | -11 -10 -10 ------- Run | Yrd Mat Sub Traps Triggered . | . . . Indirectly . | . . . Trap Hack Attempts . | . . . Triggered . | . . . Disarmed . | . . . Reprogrammed . | . . . Reused . | . . . Traps Extracted . | . . . Installed . | . . . Triggered . | . . . Machines | -11 -10 -10 ---------- Run | Yrd Mat Sub Machines Disabled 4 | . 4 . Max in Single Turn 2 | . 2 . Machines Repaired . | . . . Machines Dismantled . | . . . Machines Sabotaged . | . . . Overloaded Fab Kills . | . . . Hacking | -11 -10 -10 --------- Run | Yrd Mat Sub Machines Accessed 2 | . . 2 Terminals . | . . . Fabricators . | . . . Repair Stations . | . . . Recycling Units . | . . . Scanalyzers . | . . . Garrison Access . | . . . Total Hacks 2 | . . 2 Successful 2 | . . 2 Failed . | . . . Catastrophic . | . . . Database Lockouts . | . . . Manual . | . . . Terminals . | . . . Fabricators . | . . . Repair Stations . | . . . Recycling Units . | . . . Scanalyzers . | . . . Garrison Access . | . . . Terminal Hacks 2 | . . 2 Record 1 | . . 1 Open Door 1 | . . 1 Fabricator Hacks . | . . . Repair Station Hacks . | . . . Recycling Unit Hacks . | . . . Scanalyzer . | . . . Garrison Access Hacks . | . . . Unauthorized Hacks . | . . . Terminals . | . . . Fabricators . | . . . Repair Stations . | . . . Recycling Units . | . . . Scanalyzers . | . . . Garrison Access . | . . . Data Cores Recovered . | . . . Used . | . . . Hacking Detections . | . . . Full Trace Events . | . . . Feedback Events . | . . . Feedback Blocked . | . . . Robot Schematics Acquired . | . . . Robots Built . | . . . Authchips . | . . . Time . | . . . Total Robot Build Rating . | . . . Part Schematics Acquired . | . . . Parts Built . | . . . Authchips . | . . . Time . | . . . Total Part Build Rating . | . . . Part Studies Acquired . | . . . Parts Repaired . | . . . Time . | . . . Parts Recycled . | . . . Recycled Matter . | . . . Retrieved Matter . | . . . Retrieved Components . | . . . Parts Scanalyzed . | . . . Part Schematics Acquired . | . . . Parts Damaged . | . . . Bothacking | -11 -10 -10 ------------ Run | Yrd Mat Sub Used RIF Installer . | . . . Robots Hacked . | . . . Non-combat . | . . . Combat . | . . . Robot Hacks Applied . | . . . Relay Couplers Released . | . . . Fabnet Peak Effective % . | . . . Robots Rewired . | . . . Allies Hacked . | . . . Hacks Repelled . | . . . Allies | -11 -10 -10 -------- Run | Yrd Mat Sub Total Allies . | . . . Largest Group . | . . . Highest-Rated Group . | . . . Highest-Rated Ally . | . . . Total Orders . | . . . Ally Attacks . | . . . Total Damage . | . . . Kills . | . . . Allies Corrupted . | . . . Allies Melted . | . . . Intel | -11 -10 -10 ------- Run | Yrd Mat Sub Active Infowar (turns) . | . . . Robot Analysis Total . | . . . Derelict Logs Recovered 1 | . . 1 Drone Launches . | . . . Drone Recoveries . | . . . Exploration | -11 -10 -10 ------------- Run | Yrd Mat Sub Turns Passed 1735 | 69 727 939 Spaces Moved 970 | 61 349 560 Core 2 | 2 . . Treads 1 | 1 . . Legs 833 | . 273 560 Wheels 134 | 58 76 . Hover . | . . . Flight . | . . . Fastest Speed 50 | 50 90 120 Average Speed 115 | 89 113 120 Slowest Speed 190 | 160 120 190 Overloaded Moves . | . . . Propulsion Burnouts . | . . . Robots Hopped . | . . . Potential Cave-ins . | . . . Cave-ins Triggered 1 | . . 1 Exploration Rate (%) 30 | 3 60 28 Regions Visited 2 Branch Regions 1 Pre-discovered Areas . | . . . Known Exits Taken . | . . . Unknown Exits Taken 2 | 1 1 . Scrap Searched . | . . . Spaces Dug 3 | . . 3 Terrain Destroyed 173 | . 67 106 Melee . | . . . Projectile 3 | . . 3 AOE 170 | . 67 103 Terrain Rammed . | . . . Walls Destroyed . | . . . Machines Disabled . | . . . Actions | -11 -10 -10 --------- Run | Yrd Mat Sub Total 1431 | 72 634 725 Wait 301 | . 226 75 Move 968 | 60 348 560 Hop . | . . . Pick Up 21 | 5 10 6 Fast Attach 8 | 5 2 1 Attach 4 | 1 1 2 Detach 1 | . 1 . Swap 22 | 1 6 15 Drop 12 | . 5 7 Fire 92 | . 33 59 Melee . | . . . Ram . | . . . Kick 2 | . 2 . Crush . | . . . Escape Stasis . | . . . Rewire . | . . . Trap . | . . . Miscellaneous . | . . . Route ------- -11/Scrapyard -10/Materials (discovered 4 exits: [*Mat x2] / [*Min] / *Sub) -10/Subcaves (discovered 1 exit: [*Mat]) History --------- Turn | Location | Event 32 | -11/Scrapyard | Discovered new exit (range 14) 70 | -11/Scrapyard | Entered Materials 243 | -10/Materials | Discovered new exit (range 5) 310 | -10/Materials | Build established: Mutant 382 | -10/Materials | Discovered new exit (range 8) 512 | -10/Materials | Discovered new exit (range 3) 763 | -10/Materials | Discovered new exit (range 9) 797 | -10/Materials | Entered Subcaves 798 | -10/Subcaves | Approached by a straggling Scientist 806 | -10/Subcaves | Shifting Twisted Machinery released Flamer 806 | -10/Subcaves | Shifting Twisted Machinery released Sub. Laser 808 | -10/Subcaves | Discovered new exit (range 10) 1046 | -10/Subcaves | A swath of the cavern ceiling suddenly collapsed 1156 | -10/Subcaves | Core integrity fell below 50% 1650 | -10/Subcaves | Ambushed by Subdwellers from Twisted Machinery 1737 | -10/Subcaves | Crushed by falling debris 1737 | -10/Subcaves | Smashed by cave-in Last Messages --------------- 01475_ Subatomizers dissect the Sub. Power Source. 01567_ Imp. Aluminum Leg destroyed. 01570_ T4-PZJ(R) destroyed. 01570_ Switching to secondary target: KM-5EC(R). 01574_ Sub. Machine Gun shoots sparks and powers down. 01577_ KM-5EC(R) suffers critical hit (Destroy). 01577_ Destroyed Sub. Laser. 01581_ Acquired 23 matter. 01605_ Acquired Humpback. 01623_ KM-5EC(R) destroyed. 01626_ Acquired 34 matter. 01633_ Dropped Lgt. Ion Engine. 01636_ Acquired Sub. Power Source. 01650_ 1N-ANM(R) emerges from the Twisted Machinery. 01663_ Subatomizers dissect the Disposable Heat Sink. 01667_ 1N-ANM(R) destroyed. 01667_ B4-4Y8(R) destroyed. 01682_ Acquired 36 matter. 01737_ The unstable cave ceiling collapses. 01737_ Crushed by falling debris. Map ----- +----------------------------------------------------+ | ?????????????????????????????????????????????????? | | ?????????????????????????????????????????????????? | | ?????????????????????????????????????????????????? | | ?????????????????????????????????????????????????? | | ?????????????????????????????????????????????????? | | ?????????????????????????????????????????????????? | | ?????????????????????????????????????????????????? | | ?????????????????????????????????????????????????? | | ?????????????????????????????????????????????????? | | ?????????????????????????????????????????????????? | | ?????????????????????????????????????????????????? | | ?????????????????????????????????????????????????? | | ?????????????????????????????????????????????????? | | ?????????????????????????????????????????????????? | | ?????????????????????????????????????????????????? | | ?????????????????????????????????????????????????? | | ?????????????????????????????????????????????????? | | ?????????????????????????????????????????????????? | | ?????????????????????????????????????????????????? | | ?????????????????????????????????????????????????? | | ?????????????????????????????????????????????????? | | ?????????????????????????????????????????????????? | | ?????????????????????????????????????????????????? | | ???????????????????????##????????????????????????? | | ???????????????????????# #######?????????????????? | | ????????????????????????#@# # ####??????????????? | | ????????????????????????## ## ###????????????? | | ????????????????????????# ### ##???????????? | | ????????????????????????###?# ## #???????????? | | ????????????????????????????#### ####???????????# | | ???????????????????????????### ####??????????## | | ???????????????????????????# ### ##????????## | | ???????????????????????????# #???????## | | ??????????????????????????## #??????## | | ??????????????????????????# #####??# | | ??????????????????????????#" ## ##?# | | ??????????????????????????#" & #### | | ??????????????????????????##" & #?### | | ???????????????????????????# # #???# | | ???????????????????????????#" "#### #???# | | ???????????????????????????## " " ## ##### | | ????????????????????????????##" "" """ ### | | ?????????????????????????????##"""*"""""" * ## | | ??????????????????????????????## #"#"""" & | | ???????????????????????????????# "######" " ! " | | ???????????????????????????????#"" ????####" | | ???????????????????????????????#""#???????# ## | | ??????????????????????????????? ""????????## ## | | ???????????????????????????????# ??????????##### | | ????????????????????????????????????????????##### | +----------------------------------------------------+ Best States ------------- Heat Dissipation 25 Energy Generation 14 Energy Capacity 160 Matter Stores 300 Matter Capacity 300 Sight Range 16 Terrain Scan Density 10 Armor Coverage 150 Evasion (%) 55 Item Schematics ----------------- None Robot Schematics ------------------ None Fabricated ------------ Nothing Repaired ---------- Nothing Studied --------- None Alien Tech Used ----------------- None Achievements -------------- None Challenges ------------ None Game ------ Seed AlphaMassTendrils Manual? 0 Play Time 00:15:16 Cumulative 187.6 hours Start 2026.04.07 @ 02:00:52 End 2026.04.09 @ 18:18:30 Sessions 3 Manual Loads 0 Difficulty Rogue Special Mode None Game No. 314 Rogue 314 Adventurer 0 Explorer 0 Win Type - Total 1 Types 1/0/0/0/0/0/0/0/0/0 Lore% 58 Gallery% 59 Achievement% 45 Wizard Run 0 Options --------- Layout 2 ASCII 0 Keyboard 1 Movement Numpad Keybinds 0 Fullscreen 1 Font 20/SmallcapsGlow Map View 64x51 Zoom Use 0% Tactical HUD 1 Map Filters NONE Filters NONE Steam 1 RUN: 91dd1b96-c026-48b3-854d-c7854cd529ab